fUST/lending_fUST_20250620
["ID","MTS","AMOUNT","RATE_DAILY","PERIOD"]
[366722187,1750417844929,-460.0,0.0002126,2]
[366722190,1750417844939,-460.0,0.0002126,2]
[366722192,1750417844951,-460.0,0.0002126,2]
[366722194,1750417844961,-460.0,0.0002126,2]
[366722196,1750417844972,-605.90643552,0.0002126,2]
[366722197,1750417844982,-460.0,0.0002126,2]
[366722199,1750417844992,-460.0,0.0002126,2]
[366722201,1750417845002,-460.0,0.0002126,2]
[366722203,1750417845012,-460.0,0.0002126,2]
[366722205,1750417845022,-460.0,0.0002126,2]
[366722207,1750417845032,-463.10017045,0.0002126,2]
[366722209,1750417845043,-460.0,0.0002126,2]
[366722211,1750417845053,-460.0,0.0002126,2]
[366722213,1750417845064,-460.0,0.0002126,2]
[366722215,1750417845074,-460.0,0.0002126,2]
[366722217,1750417845084,-460.0,0.0002126,2]
[366722219,1750417845094,-460.0,0.0002126,2]
[366722221,1750417845104,-460.0,0.0002126,2]
[366722223,1750417845115,-460.0,0.0002126,2]
[366722225,1750417845125,-864.73,0.0002126,2]
[366722227,1750417845135,-350.9513032,0.0002126,2]
[366722229,1750417845145,-460.0,0.0002126,2]
[366722231,1750417845155,-460.0,0.0002126,2]
[366722232,1750417845165,-460.0,0.0002126,2]
[366722233,1750417845174,-460.0,0.0002126,2]
[366722234,1750417845184,-434.86301594,0.0002126,2]
[366722235,1750417845194,-462.93175639,0.0002126,2]
[366722236,1750417845204,-460.0,0.0002126,2]
[366722237,1750417845214,-460.0,0.0002126,2]
[366722238,1750417845223,-460.0,0.0002126,2]
[366722239,1750417845233,-401.89411682,0.0002126,2]
[366722240,1750417845243,-460.0,0.0002126,2]
[366722241,1750417845252,-460.0,0.0002126,2]
[366722242,1750417845261,-460.0,0.0002126,2]
[366722243,1750417845271,-460.0,0.0002126,2]
[366722244,1750417845280,-460.0,0.0002126,2]
[366722245,1750417845289,-460.0,0.0002126,2]
[366722246,1750417845299,-460.0,0.0002126,2]
[366722247,1750417845309,-460.0,0.0002126,2]
[366722248,1750417845318,-460.0,0.0002126,2]
[366722249,1750417845328,-460.0,0.0002126,2]
[366722250,1750417845337,-460.0,0.0002126,2]
[366722251,1750417845347,-460.0,0.0002126,2]
[366722252,1750417845362,-460.0,0.0002126,2]
[366722253,1750417845372,-460.0,0.0002126,2]
[366722254,1750417845382,-460.0,0.0002126,2]
[366722255,1750417845392,-460.0,0.0002126,2]
[366722256,1750417845402,-460.0,0.0002126,2]
[366722257,1750417845411,-460.0,0.0002126,2]
[366722258,1750417845421,-460.0,0.0002126,2]
[366722259,1750417845431,-460.0,0.0002126,2]
[366722260,1750417845441,-676.1,0.0002126,2]
[366722261,1750417845451,-405.9387443,0.0002126,2]
[366722262,1750417845462,-460.0,0.0002126,2]
[366722263,1750417845472,-460.0,0.0002126,2]
[366722264,1750417845481,-460.0,0.0002126,2]
[366722265,1750417845492,-460.0,0.0002126,2]
[366722266,1750417845501,-460.0,0.0002126,2]
[366722267,1750417845511,-460.0,0.0002126,2]
[366722268,1750417845521,-460.0,0.0002126,2]
[366722271,1750417845531,-151.0,0.0002126,2]
[366722273,1750417845540,-460.0,0.0002126,2]
[366722275,1750417845551,-460.0,0.0002126,2]
[366722276,1750417845560,-1427.48,0.0002126,2]
[366722278,1750417845570,-460.0,0.0002126,2]
[366722280,1750417845580,-460.0,0.0002126,2]
[366722282,1750417845591,-460.0,0.0002126,2]
[366722284,1750417845601,-460.0,0.0002126,2]
[366722286,1750417845611,-460.0,0.0002126,2]
[366722288,1750417845624,-746.54,0.0002126,2]
[366722290,1750417845634,-460.0,0.0002126,2]
[366722292,1750417845645,-460.0,0.00021262,2]
[366722294,1750417845655,-460.0,0.00021262,2]
[366722296,1750417845665,-460.0,0.00021262,2]
[366722298,1750417845675,-460.0,0.00021262,2]
[366722301,1750417845687,-460.0,0.00021262,2]
[366722303,1750417845698,-460.0,0.00021262,2]
[366722305,1750417845709,-460.0,0.00021262,2]
[366722307,1750417845719,-460.0,0.00021262,2]
[366722309,1750417845728,-460.0,0.00021262,2]
[366722311,1750417845738,-460.0,0.00021262,2]
[366722313,1750417845748,-460.0,0.00021262,2]
[366722315,1750417845758,-460.0,0.00021262,2]
[366722317,1750417845767,-460.0,0.00021262,2]
[366722319,1750417845777,-460.0,0.00021262,2]
[366722321,1750417845789,-328.73572308,0.00021262,2]
[366722323,1750417845799,-460.0,0.00021262,2]
[366722325,1750417845809,-460.0,0.00021262,2]
[366722327,1750417845818,-460.0,0.00021262,2]
[366722329,1750417845828,-460.0,0.00021262,2]
[366722331,1750417845839,-460.0,0.00021262,2]
[366722333,1750417845849,-460.0,0.00021262,2]
[366722335,1750417845859,-460.0,0.00021262,2]
[366722337,1750417845869,-460.0,0.00021262,2]
[366722339,1750417845879,-460.0,0.00021262,2]
[366722341,1750417845892,-460.0,0.00021262,2]
[366722343,1750417845902,-460.0,0.00021262,2]
[366722345,1750417845911,-460.0,0.00021262,2]
[366722347,1750417845921,-151.0,0.00021262,2]
[366722349,1750417845931,-151.0,0.00021262,2]
[366722351,1750417845941,-500.0,0.00021273,2]
[366722352,1750417845951,-1042.46629884,0.000214,5]
[366722354,1750417845960,-1042.4662987,0.000214,5]
[366722356,1750417845970,-1042.4662987,0.000214,5]
[366722357,1750417845982,-1042.4662987,0.00021417,5]
[366722359,1750417845992,-469.51936451,0.00021519,2]
[366722361,1750417846002,-460.0,0.00021519,2]
[366722363,1750417846012,-460.0,0.00021519,2]
[366722365,1750417846022,-460.0,0.00021519,2]
[366722367,1750417846031,-460.0,0.00021519,2]
[366722369,1750417846041,-460.0,0.00021519,2]
[366722371,1750417846052,-329.2,0.00021519,2]
[366722373,1750417846063,-635.56,0.00021519,2]
[366722375,1750417846073,-460.0,0.00021519,2]
[366722377,1750417846083,-460.0,0.00021519,2]
[366722379,1750417846093,-1136.13,0.00021519,2]
[366722381,1750417846103,-1061.71,0.00021519,2]
[366722383,1750417846112,-460.0,0.00021519,2]
[366722385,1750417846122,-460.0,0.00021519,2]
[366722387,1750417846132,-460.0,0.00021519,2]
[366722389,1750417846141,-460.0,0.00021519,2]
[366722391,1750417846152,-460.0,0.00021519,2]
[366722393,1750417846161,-460.0,0.00021519,2]
[366722395,1750417846171,-460.0,0.00021519,2]
[366722397,1750417846180,-1089.35,0.00021519,2]
[366722399,1750417846190,-1429.02,0.00021519,2]
[366722401,1750417846200,-1184.04,0.00021519,2]
[366722402,1750417846210,-460.0,0.00021519,2]
[366722404,1750417846220,-460.0,0.00021519,2]
[366722406,1750417846229,-460.0,0.00021519,2]
[366722408,1750417846240,-316.75600553,0.00021519,2]
[366722410,1750417846249,-460.0,0.00021519,2]
[366722412,1750417846259,-460.0,0.00021519,2]
[366722414,1750417846268,-460.0,0.00021519,2]
[366722416,1750417846278,-460.0,0.00021519,2]
[366722418,1750417846288,-1000.0,0.00021521,2]
[366722420,1750417846298,-500.0,0.00021521,2]
[366722422,1750417846308,-460.0,0.00021534,2]
[366722424,1750417846318,-460.0,0.00021534,2]
[366722426,1750417846327,-181.57858191,0.00021534,2]
[366722428,1750417846337,-460.0,0.00021534,2]
[366722430,1750417846346,-460.0,0.00021534,2]
[366722432,1750417846356,-460.0,0.00021534,2]
[366722434,1750417846365,-460.0,0.00021534,2]
[366722436,1750417846374,-472.72637306,0.00021534,2]
[366722438,1750417846384,-460.0,0.00021534,2]
[366722440,1750417846394,-460.0,0.00021534,2]
[366722442,1750417846404,-460.0,0.00021534,2]
[366722444,1750417846414,-402.63028104,0.00021534,2]
[366722446,1750417846423,-460.0,0.00021534,2]
[366722447,1750417846433,-460.0,0.00021534,2]
[366722449,1750417846442,-460.0,0.00021534,2]
[366722451,1750417846452,-460.0,0.00021534,2]
[366722453,1750417846462,-460.0,0.00021534,2]
[366722455,1750417846472,-460.0,0.00021534,2]
[366722457,1750417846482,-400.0,0.00021534,2]
[366722459,1750417846491,-460.0,0.00021534,2]
[366722461,1750417846501,-460.0,0.00021534,2]
[366722463,1750417846511,-418.99801403,0.00021534,2]
[366722465,1750417846521,-460.0,0.00021534,2]
[366722467,1750417846530,-430.0,0.00021534,2]
[366722469,1750417846540,-460.0,0.00021534,2]
[366722471,1750417846550,-460.0,0.00021534,2]
[366722473,1750417846560,-404.99766833,0.00021534,2]
[366722475,1750417846569,-460.0,0.00021534,2]
[366722477,1750417846579,-460.0,0.00021534,2]
[366722479,1750417846589,-460.0,0.00021534,2]
[366722481,1750417846599,-430.0,0.00021534,2]
[366722483,1750417846609,-460.0,0.00021534,2]
[366722485,1750417846622,-460.0,0.00021534,2]
[366722487,1750417846631,-460.0,0.00021534,2]
[366722489,1750417846641,-460.0,0.00021534,2]
[366722491,1750417846651,-460.0,0.00021534,2]
[366722493,1750417846660,-460.0,0.00021534,2]
[366722495,1750417846670,-460.0,0.00021534,2]
[366722497,1750417846679,-460.0,0.00021534,2]
[366722500,1750417846700,-460.0,0.00021534,2]
[366722502,1750417846711,-478.47216707,0.00021534,2]
[366722504,1750417846722,-207.45111952,0.00021534,2]
[366722506,1750417846732,-460.0,0.00021534,2]
[366722508,1750417846742,-401.49629547,0.00021534,2]
[366722510,1750417846752,-177.95847491,0.00021534,2]
[366722512,1750417846762,-460.0,0.00021534,2]
[366722514,1750417846772,-460.0,0.00021534,2]
[366722516,1750417846782,-460.0,0.00021534,2]
[366722518,1750417846793,-460.0,0.00021534,2]
[366722520,1750417846804,-460.0,0.00021534,2]
[366722522,1750417846815,-460.0,0.00021534,2]
[366722524,1750417846825,-460.0,0.00021534,2]
[366722526,1750417846834,-460.0,0.00021534,2]
[366722528,1750417846844,-460.0,0.00021534,2]
[366722530,1750417846854,-460.0,0.00021534,2]
[366722532,1750417846864,-460.0,0.00021534,2]
[366722534,1750417846874,-344.22252767,0.00021534,2]
[366722536,1750417846883,-460.0,0.00021534,2]
[366722538,1750417846893,-460.0,0.00021534,2]
[366722540,1750417846903,-440.0,0.00021534,2]
[366722542,1750417846912,-460.0,0.00021534,2]
[366722544,1750417846922,-500.0,0.00021534,2]
[366722546,1750417846931,-460.0,0.00021534,2]
[366722548,1750417846941,-460.0,0.00021534,2]
[366722550,1750417846950,-460.0,0.00021534,2]
[366722552,1750417846960,-505.25,0.00021534,2]
[366722554,1750417846971,-570.61,0.00021534,2]
[366722556,1750417846981,-460.0,0.00021534,2]
[366722558,1750417846991,-460.0,0.00021534,2]
[366722560,1750417847000,-460.0,0.00021534,2]
[366722562,1750417847011,-460.0,0.00021534,2]
[366722564,1750417847022,-563.45,0.00021534,2]
[366722566,1750417847032,-420.38926321,0.00021534,2]
[366722569,1750417847046,-460.0,0.00021534,2]
[366722571,1750417847056,-460.0,0.00021534,2]
[366722573,1750417847066,-460.0,0.00021534,2]
[366722575,1750417847075,-460.0,0.00021534,2]
[366722577,1750417847085,-460.0,0.00021534,2]
[366722579,1750417847095,-460.0,0.00021534,2]
[366722581,1750417847105,-460.0,0.00021534,2]
[366722583,1750417847115,-460.0,0.00021534,2]
[366722585,1750417847125,-460.0,0.00021534,2]
[366722587,1750417847134,-166.58508703,0.00021534,2]
[366722589,1750417847144,-840.76,0.00021534,2]
[366722591,1750417847154,-460.0,0.00021534,2]
[366722593,1750417847163,-460.0,0.00021534,2]
[366722595,1750417847173,-1098.07,0.00021534,2]
[366722597,1750417847183,-460.0,0.00021534,2]
[366722599,1750417847193,-460.0,0.00021534,2]
[366722601,1750417847203,-460.0,0.00021534,2]
[366722603,1750417847212,-460.0,0.00021534,2]
[366722605,1750417847222,-460.0,0.00021534,2]
[366722606,1750417847233,-460.0,0.00021534,2]
[366722608,1750417847243,-460.0,0.00021534,2]
[366722632,1750417847253,-460.0,0.00021534,2]
[366722635,1750417847481,-460.0,0.00021534,2]
[366722637,1750417847491,-385.52197514,0.00021534,2]
[366722639,1750417847501,-460.0,0.00021534,2]
[366722641,1750417847512,-460.0,0.00021534,2]
[366722643,1750417847521,-460.0,0.00021534,2]
[366722644,1750417847531,-460.0,0.00021534,2]
[366722646,1750417847540,-460.0,0.00021534,2]
[366722648,1750417847550,-460.0,0.00021534,2]
[366722650,1750417847561,-460.0,0.00021534,2]
[366722652,1750417847571,-460.0,0.00021534,2]
[366722654,1750417847580,-460.0,0.00021534,2]
[366722656,1750417847590,-460.0,0.00021534,2]
[366722658,1750417847599,-406.72114268,0.00021534,2]
[366722660,1750417847609,-460.0,0.00021534,2]
[366722662,1750417847623,-460.0,0.00021534,2]
[366722664,1750417847632,-460.0,0.00021534,2]
[366722666,1750417847642,-460.0,0.00021534,2]
[366722668,1750417847651,-460.0,0.00021534,2]
[366722670,1750417847662,-460.0,0.00021534,2]
[366722672,1750417847672,-864.73,0.00021534,2]
[366722674,1750417847681,-460.0,0.00021534,2]
[366722676,1750417847694,-460.0,0.00021534,2]
[366722678,1750417847704,-460.0,0.00021534,2]
[366722680,1750417847713,-460.0,0.00021534,2]
[366722682,1750417847723,-448.13687165,0.00021534,2]
[366722684,1750417847733,-460.0,0.00021534,2]
[366722686,1750417847742,-460.0,0.00021534,2]
[366722688,1750417847752,-460.0,0.00021534,2]
[366722690,1750417847762,-460.0,0.00021534,2]
[366722692,1750417847771,-460.0,0.00021534,2]
[366722694,1750417847781,-460.0,0.00021534,2]
[366722696,1750417847790,-460.0,0.00021534,2]
[366722698,1750417847800,-460.0,0.00021534,2]
[366722700,1750417847809,-460.0,0.00021534,2]
[366722702,1750417847820,-460.0,0.00021534,2]
[366722704,1750417847830,-460.0,0.00021534,2]
[366722706,1750417847839,-460.0,0.00021534,2]
[366722708,1750417847849,-460.0,0.00021534,2]
[366722710,1750417847858,-230.0,0.00021534,2]
[366722712,1750417847868,-460.0,0.00021534,2]
[366722714,1750417847877,-297.50690932,0.00021534,2]
[366722716,1750417847886,-460.0,0.00021534,2]
[366722718,1750417847895,-460.0,0.00021534,2]
[366722720,1750417847904,-460.0,0.00021534,2]
[366722722,1750417847914,-460.0,0.00021534,2]
[366722724,1750417847923,-460.0,0.00021534,2]
[366722726,1750417847933,-676.1,0.00021534,2]
[366722728,1750417847942,-460.0,0.00021534,2]
[366722730,1750417847951,-460.0,0.00021534,2]
[366722732,1750417847961,-460.0,0.00021534,2]
[366722734,1750417847970,-460.0,0.00021534,2]
[366722736,1750417847979,-460.0,0.00021534,2]
[366722737,1750417847988,-460.0,0.00021534,2]
[366722738,1750417847998,-460.0,0.00021534,2]
[366722739,1750417848009,-151.0,0.00021534,2]
[366722740,1750417848018,-460.0,0.00021534,2]
[366722741,1750417848028,-460.0,0.00021534,2]
[366722742,1750417848038,-1427.48,0.00021534,2]
[366722743,1750417848047,-436.40730184,0.00021534,2]
[366722744,1750417848057,-460.0,0.00021534,2]
[366722745,1750417848067,-460.0,0.00021534,2]
[366722746,1750417848076,-460.0,0.00021534,2]
[366722748,1750417848086,-460.0,0.00021534,2]
[366722750,1750417848097,-746.54,0.00021534,2]
[366722752,1750417848107,-460.0,0.00021534,2]
[366722754,1750417848117,-460.0,0.00021536,2]
[366722756,1750417848126,-460.0,0.00021536,2]
[366722758,1750417848136,-460.0,0.00021536,2]
[366722760,1750417848146,-237.41985554,0.00021536,2]
[366722762,1750417848155,-460.0,0.00021536,2]
[366722764,1750417848165,-433.49486638,0.00021536,2]
[366722766,1750417848174,-460.0,0.00021536,2]
[366722768,1750417848183,-460.0,0.00021536,2]
[366722769,1750417848193,-460.0,0.00021536,2]
[366722772,1750417848203,-460.0,0.00021536,2]
[366722774,1750417848213,-460.0,0.00021536,2]
[366722775,1750417848222,-460.0,0.00021536,2]
[366722778,1750417848232,-460.0,0.00021536,2]
[366722780,1750417848242,-460.0,0.00021536,2]
[366722782,1750417848252,-460.0,0.00021536,2]
[366722783,1750417848261,-460.0,0.00021536,2]
[366722786,1750417848271,-460.0,0.00021536,2]
[366722788,1750417848281,-584.68548551,0.00021536,2]
[366722789,1750417848290,-460.0,0.00021536,2]
[366722791,1750417848300,-460.0,0.00021536,2]
[366722794,1750417848310,-460.0,0.00021536,2]
[366722795,1750417848319,-460.0,0.00021536,2]
[366722798,1750417848331,-500.0,0.00021573,2]
[366722800,1750417848340,-500.0,0.00021573,2]
[366722802,1750417848350,-500.0,0.00021573,2]
[366722803,1750417848360,-158.25467616,0.00021573,2]
[366722907,1750417849387,-5000.0,0.00020761,2]
[366722909,1750417849397,-460.0,0.00020971,2]
[366722911,1750417849406,-460.0,0.00020971,2]
[366722913,1750417849416,-460.0,0.00020986,2]
[366722915,1750417849426,-187.26,0.00021245,2]
[366722917,1750417849435,-877.79236358,0.0002126,2]
[366722919,1750417849445,-441.74532384,0.00021573,2]
[366722921,1750417849454,-528.64009666,0.00021573,2]
[366722923,1750417849463,-500.0,0.00021573,2]
[366722925,1750417849473,-1042.4662987,0.0002159,5]
[366722927,1750417849483,-1433.66731699,0.000216,2]
[366723154,1750417950797,200.0,0.00023992,120]
[366723155,1750417981318,500.0,0.00024657,120]
[366723156,1750418042913,-155.0,0.0002076,2]
[366723157,1750418046654,-155.0,0.00020758,2]
[366723158,1750418046739,7379.07234458,0.0001997,2]
[366723159,1750418046768,10500.0,0.0001997,2]
[366723160,1750418046792,7020.92765542,0.0001997,2]
[366723161,1750418054263,-187.73860198,0.00020551,2]
[366723163,1750418063179,-158.83822416,0.00020551,2]
[366723164,1750418069337,1967.1832233,0.00019886,2]
[366723167,1750418101056,896.62878577,0.00019434,2]
[366723168,1750418101696,-202.01260349,0.00020551,2]
[366723169,1750418109898,615.26033551,0.00019944,2]
[366723170,1750418109922,1581.35889439,0.00019944,2]
[366723171,1750418119812,597.75252385,0.00019434,2]
[366723172,1750418120421,-300.1066694,0.00020551,2]
[366723176,1750418216650,260.2087515,0.00019942,2]
[366723177,1750418246276,-195.26161375,0.00020453,2]
[366723178,1750418285469,1198.9649964,0.00025107,120]
[366723182,1750418402556,398.50168256,0.00019434,2]
[366723183,1750418421220,265.66778838,0.00019434,2]
[366723184,1750418430068,500.2,0.00024658,120]
[366723185,1750418433135,5000.0,0.000201,2]
[366723186,1750418449455,2396.51035932,0.000201,2]
[366723187,1750418449479,2603.48964068,0.000201,2]
[366723188,1750418465364,5000.0,0.000201,2]
[366723189,1750418481259,2896.51035932,0.000201,2]
[366723190,1750418481284,2103.48964068,0.000201,2]
[366723191,1750418497071,5000.0,0.000201,2]
[366723192,1750418512894,3280.56144951,0.000201,2]
[366723194,1750418543308,115.94890981,0.000201,2]
[366723195,1750418543332,4884.05109019,0.000201,2]
[366723198,1750418559261,5000.0,0.000201,2]
[366723200,1750418604471,615.94890981,0.000201,2]
[366723201,1750418604495,4384.05109019,0.000201,2]
[366723202,1750418619749,5000.0,0.000201,2]
[366723203,1750418666191,1115.94890981,0.000201,2]
[366723204,1750418666216,3884.05109019,0.000201,2]
[366723205,1750418667122,-253.81798241,0.00020127,2]
[366723206,1750418668379,184.060435,0.00019905,2]
[366723207,1750418681611,5000.0,0.000201,2]
[366723208,1750418682301,-165.83710826,0.00020127,2]
[366723210,1750418703718,1054.3057231,0.00019434,2]
[366723212,1750418722560,377.58275171,0.00019434,2]
[366723213,1750418722588,325.28773036,0.00019434,2]
[366723214,1750418723189,-226.67330297,0.00020127,2]
[366723215,1750418727914,5000.0,0.000201,2]
[366723217,1750418743996,3345.5276832,0.000201,2]
[366723220,1750418811875,266.0127115,0.00019906,2]
[366723226,1750418873922,1563.17187494,0.00018,2]
[366723227,1750418873950,5365.60586652,0.00018,2]
[366723228,1750418897101,412.96297293,0.00010618,2]
[366723229,1750418899096,4721.43116055,0.000125,2]
[366723230,1750418899314,6601.61234694,0.000125,2]
[366723231,1750418899836,-202.69938057,0.00020127,2]
[366723232,1750418905859,3898.38765306,0.000201,2]
[366723233,1750418905883,1101.61234694,0.000201,2]
[366723234,1750418908382,2074.69281919,0.000176,2]
[366723235,1750418910271,200.62823428,0.00019,2]
[366723236,1750418910982,276.38431614,0.00014114,2]
[366723237,1750418913160,281.20796984,0.0001,2]
[366723238,1750418918435,6565.47431361,0.00017,2]
[366723239,1750418918458,517.3311184,0.00017,2]
[366723240,1750418920501,242.74037614,0.0002,7]
[366723241,1750418920704,-165.1568582,0.00020127,2]
[366723243,1750418921782,5000.0,0.000201,2]
[366723244,1750418923098,185.490491,0.00013699,2]
[366723245,1750418924826,151.000001,0.0002,120]
[366723246,1750418927245,680.53194513,0.0002,2]
[366723252,1750418966872,3873.90606933,0.000201,2]
[366723253,1750418966897,1126.09393067,0.000201,2]
[366723254,1750418977421,286.70879938,0.00019523,2]
[366723257,1750418994176,9087.19726995,0.00019776,2]
[366723258,1750418994197,6976.42338535,0.00019776,2]
[366723259,1750419004927,1076.03073982,0.000189,2]
[366723265,1750419023623,717.35382655,0.000189,2]
[366723266,1750419027287,-155.0,0.00020127,2]
[366723267,1750419029051,-225.78061984,0.00020127,2]
[366723301,1750419032393,-214.48398295,0.00020127,2]
[366723302,1750419032404,-155.0,0.00020127,2]
[366723304,1750419032414,-185.490491,0.00020187,2]
[366723307,1750419032424,-178.55661876,0.000204,2]
[366723308,1750419032433,-168.0,0.00020403,2]
[366723309,1750419032443,-165.83710826,0.00020458,2]
[366723310,1750419032454,-165.31656581,0.00020558,2]
[366723311,1750419032463,-155.0,0.00020675,2]
[366723312,1750419032473,-168.0,0.00020707,2]
[366723313,1750419032483,-165.31656581,0.0002071,2]
[366723314,1750419032492,-438.89618179,0.00020758,2]
[366723315,1750419032502,-168.0,0.00020815,2]
[366723316,1750419032512,-500.0,0.00020844,2]
[366723317,1750419032521,-178.55661876,0.0002086,2]
[366723318,1750419032531,-1161.04122772,0.0002086,2]
[366723319,1750419032540,-165.31656581,0.00020862,2]
[366723320,1750419032550,-203.72,0.00020955,2]
[366723321,1750419032560,-300.0,0.00020959,2]
[366723322,1750419032570,-300.0,0.00020959,2]
[366723323,1750419032579,-1200.0,0.00020959,2]
[366723325,1750419032590,-500.0,0.0002096,2]
[366723326,1750419032599,-500.0,0.0002096,2]
[366723327,1750419032609,-467.90619275,0.0002096,2]
[366723328,1750419032619,-500.0,0.0002096,2]
[366723329,1750419032628,-500.0,0.0002096,2]
[366723330,1750419032639,-500.0,0.0002096,2]
[366723331,1750419032649,-500.0,0.0002096,2]
[366723332,1750419032658,-250.21308523,0.0002096,2]
[366723333,1750419032668,-500.0,0.0002096,2]
[366723334,1750419032678,-500.0,0.0002096,2]
[366723335,1750419032688,-500.0,0.0002096,2]
[366723336,1750419032698,-335.21773755,0.0002096,2]
[366723337,1750419032710,-164.78226245,0.0002096,2]
[366723338,1750419032720,-500.0,0.0002096,2]
[366723339,1750419032729,-500.0,0.0002096,2]
[366723340,1750419032739,-500.0,0.0002096,2]
[366723341,1750419032749,-203.63877448,0.0002096,2]
[366723342,1750419032758,-500.0,0.0002096,2]
[366723343,1750419032768,-195.26161375,0.0002096,2]
[366723344,1750419032780,-500.0,0.0002096,2]
[366723345,1750419032790,-500.0,0.0002096,2]
[366723346,1750419032800,-500.0,0.0002096,2]
[366723347,1750419032810,-500.0,0.0002096,2]
[366723348,1750419032820,-443.28286962,0.0002096,2]
[366723349,1750419032829,-500.0,0.0002096,2]
[366723350,1750419032839,-500.0,0.0002096,2]
[366723351,1750419032849,-500.0,0.0002096,2]
[366723352,1750419032860,-195.51856921,0.0002096,2]
[366723353,1750419032870,-500.0,0.0002096,2]
[366723354,1750419032880,-626.22794414,0.0002096,2]
[366723355,1750419032890,-500.0,0.0002096,2]
[366723356,1750419032901,-500.0,0.0002096,2]
[366723357,1750419032912,-500.0,0.0002096,2]
[366723358,1750419032922,-500.0,0.0002096,2]
[366723359,1750419032931,-500.0,0.0002096,2]
[366723360,1750419032941,-500.0,0.0002096,2]
[366723361,1750419032951,-500.0,0.0002096,2]
[366723362,1750419032961,-500.0,0.0002096,2]
[366723363,1750419032971,-500.0,0.0002096,2]
[366723364,1750419032981,-500.0,0.0002096,2]
[366723365,1750419032991,-500.0,0.0002096,2]
[366723366,1750419033000,-500.0,0.0002096,2]
[366723367,1750419033010,-500.0,0.0002096,2]
[366723368,1750419033021,-500.0,0.0002096,2]
[366723369,1750419033031,-500.0,0.0002096,2]
[366723370,1750419033041,-500.0,0.0002096,2]
[366723371,1750419033051,-500.0,0.0002096,2]
[366723372,1750419033061,-500.0,0.0002096,2]
[366723373,1750419033071,-260.11797901,0.0002096,2]
[366723374,1750419033082,-500.0,0.0002096,2]
[366723375,1750419033092,-500.0,0.0002096,2]
[366723376,1750419033103,-500.0,0.0002096,2]
[366723377,1750419033114,-500.0,0.0002096,2]
[366723378,1750419033124,-500.0,0.0002096,2]
[366723379,1750419033135,-500.0,0.0002096,2]
[366723380,1750419033145,-500.0,0.0002096,2]
[366723381,1750419033155,-500.0,0.0002096,2]
[366723382,1750419033166,-500.0,0.0002096,2]
[366723383,1750419033176,-500.0,0.0002096,2]
[366723384,1750419033187,-362.83479752,0.0002096,2]
[366723385,1750419033198,-500.0,0.0002096,2]
[366723386,1750419033209,-500.0,0.0002096,2]
[366723387,1750419033219,-500.0,0.0002096,2]
[366723388,1750419033229,-500.0,0.0002096,2]
[366723389,1750419033240,-500.0,0.0002096,2]
[366723390,1750419033250,-500.0,0.0002096,2]
[366723391,1750419033260,-500.0,0.0002096,2]
[366723392,1750419033273,-640.01310878,0.0002096,2]